[Event "*** SCC Grand Prix: Titled Tuesday Blitz"]
[Site "Chess.com"]
[Date "2020.09.08"]
[Round "8"]
[White "Harsha_Bharathakoti"]
[Black "albi1999"]
[Result "1-0"]
[WhiteElo "2805"]
[BlackElo "2630"]
[TimeControl "180+1"]
[EndTime "11:37:40 PDT"]
[Termination "Harsha_Bharathakoti won by resignation"]

1. c4 {[%clk 0:03:00.9]} 1... e5 {[%clk 0:02:58.1]} 2. g3 {[%clk 0:02:58.6]}
2... c6 {[%clk 0:02:55.9]} 3. Nf3 {[%clk 0:02:54.9]} 3... e4 {[%clk 0:02:56.4]}
4. Nd4 {[%clk 0:02:54.4]} 4... d5 {[%clk 0:02:57.1]} 5. cxd5 {[%clk 0:02:55]}
5... Qxd5 {[%clk 0:02:57.9]} 6. Nc2 {[%clk 0:02:54.3]} 6... Nf6 {[%clk
0:02:55.8]} 7. Nc3 {[%clk 0:02:54.2]} 7... Qe5 {[%clk 0:02:49.6]} 8. Bg2 {[%clk
0:02:51.7]} 8... Na6 {[%clk 0:02:42.1]} 9. O-O {[%clk 0:02:34.3]} 9... Be7
{[%clk 0:02:40]} 10. Ne3 {[%clk 0:02:16.3]} 10... Nc5 {[%clk 0:02:32]} 11. b4
{[%clk 0:02:14.4]} 11... Ne6 {[%clk 0:02:31.5]} 12. Bb2 {[%clk 0:02:07.6]} 12...
O-O {[%clk 0:02:30.1]} 13. Qb1 {[%clk 0:02:04]} 13... Nd4 {[%clk 0:02:10.2]} 14.
Re1 {[%clk 0:01:59]} 14... Qh5 {[%clk 0:01:28.8]} 15. Nxe4 {[%clk 0:01:29.7]}
15... Rd8 {[%clk 0:01:27.6]} 16. Nxf6+ {[%clk 0:00:34.1]} 16... Bxf6 {[%clk
0:01:26.4]} 17. f3 {[%clk 0:00:30.6]} 17... Qb5 {[%clk 0:01:18.5]} 18. Bf1
{[%clk 0:00:26.5]} 18... Qxb4 {[%clk 0:01:14.7]} 19. Bc3 {[%clk 0:00:26.3]}
19... Qe7 {[%clk 0:01:10.2]} 20. Qb2 {[%clk 0:00:26.8]} 20... Be6 {[%clk
0:01:03.5]} 21. Ng2 {[%clk 0:00:24.4]} 21... Bd5 {[%clk 0:00:43.2]} 22. Nf4
{[%clk 0:00:24.5]} 22... Bxf3 {[%clk 0:00:41.9]} 23. exf3 {[%clk 0:00:25]} 23...
Nxf3+ {[%clk 0:00:40.9]} 24. Kf2 {[%clk 0:00:25.7]} 24... Nxe1 {[%clk
0:00:40.7]} 25. Rxe1 {[%clk 0:00:26.6]} 25... Qc5+ {[%clk 0:00:30.6]} 26. Kf3
{[%clk 0:00:21.3]} 26... Bxc3 {[%clk 0:00:23.7]} 27. Qxc3 {[%clk 0:00:22.2]}
27... Qxc3+ {[%clk 0:00:23]} 28. dxc3 {[%clk 0:00:23.1]} 28... Kf8 {[%clk
0:00:17.6]} 29. Rb1 {[%clk 0:00:18.3]} 29... Rd7 {[%clk 0:00:16.8]} 30. Nd3
{[%clk 0:00:12.9]} 30... b6 {[%clk 0:00:14.6]} 31. Ne5 {[%clk 0:00:13.2]} 31...
Rc7 {[%clk 0:00:15]} 32. Bc4 {[%clk 0:00:13.6]} 32... Re8 {[%clk 0:00:14.4]} 33.
Nd3 {[%clk 0:00:12.6]} 33... g6 {[%clk 0:00:11.6]} 34. Nf4 {[%clk 0:00:10.7]}
34... Kg7 {[%clk 0:00:10.9]} 35. Rb2 {[%clk 0:00:10]} 35... Rce7 {[%clk
0:00:10.8]} 36. Ng2 {[%clk 0:00:07.9]} 36... Kf6 {[%clk 0:00:10.1]} 37. a4
{[%clk 0:00:07.9]} 37... Re5 {[%clk 0:00:10.1]} 38. g4 {[%clk 0:00:06.5]} 38...
Rc5 {[%clk 0:00:10.2]} 39. Ba2 {[%clk 0:00:02.9]} 39... Rxc3+ {[%clk 0:00:10.3]}
40. Kf2 {[%clk 0:00:03.8]} 40... Rd8 {[%clk 0:00:08.5]} 41. Ne3 {[%clk
0:00:03.1]} 41... Rcd3 {[%clk 0:00:07.5]} 42. Ke2 {[%clk 0:00:02.8]} 42... R3d4
{[%clk 0:00:07]} 43. Rc2 {[%clk 0:00:03]} 43... c5 {[%clk 0:00:06.5]} 44. Bc4
{[%clk 0:00:02.8]} 44... Kg5 {[%clk 0:00:05.9]} 45. Kf2 {[%clk 0:00:02.8]} 45...
f5 {[%clk 0:00:05.7]} 46. gxf5 {[%clk 0:00:02.7]} 46... gxf5 {[%clk 0:00:06.6]}
47. Kf3 {[%clk 0:00:03.3]} 47... Rf4+ {[%clk 0:00:05.2]} 48. Ke2 {[%clk
0:00:03.3]} 48... Re4 {[%clk 0:00:05.2]} 49. Kf3 {[%clk 0:00:03.3]} 49... Rde8
{[%clk 0:00:05.5]} 50. Nd5 {[%clk 0:00:03.7]} 50... Rd4 {[%clk 0:00:03.2]} 51.
Rg2+ {[%clk 0:00:03.8]} 51... Kh6 {[%clk 0:00:02.7]} 52. Rc2 {[%clk 0:00:02.5]}
52... Rf8 {[%clk 0:00:02]} 53. Nf4 {[%clk 0:00:02.4]} 53... Kg5 {[%clk
0:00:01.8]} 54. Ne6+ {[%clk 0:00:02.9]} 54... Kf6 {[%clk 0:00:02.3]} 55. Nxf8
{[%clk 0:00:03.8]} 55... Kg7 {[%clk 0:00:02.1]} 56. Ne6+ {[%clk 0:00:04.1]}
56... Kf6 {[%clk 0:00:03]} 57. Nxd4 {[%clk 0:00:05]} 57... cxd4 {[%clk
0:00:03.7]} 58. Bd3 {[%clk 0:00:05.6]} 58... Ke5 {[%clk 0:00:04.6]} 59. Rc6
{[%clk 0:00:06.5]} 1-0

[Event "*** SCC Grand Prix: Titled Tuesday Blitz"]
[Site "Chess.com"]
[Date "2020.09.08"]
[Round "8"]
[White "chesslh19"]
[Black "Duong57"]
[Result "0-1"]
[WhiteElo "2200"]
[BlackElo "2303"]
[TimeControl "180+1"]
[EndTime "11:37:40 PDT"]
[Termination "Duong57 won on time"]

1. e4 {[%clk 0:02:53.8]} 1... c5 {[%clk 0:02:58.6]} 2. Nf3 {[%clk 0:02:53.4]}
2... d6 {[%clk 0:02:58.9]} 3. d4 {[%clk 0:02:53.4]} 3... cxd4 {[%clk 0:02:59.5]}
4. Nxd4 {[%clk 0:02:54.3]} 4... Nf6 {[%clk 0:02:59.9]} 5. Nc3 {[%clk 0:02:54.5]}
5... a6 {[%clk 0:03:00.3]} 6. Be2 {[%clk 0:02:54.8]} 6... e5 {[%clk 0:03:00.5]}
7. Nb3 {[%clk 0:02:55.5]} 7... Be7 {[%clk 0:03:01.1]} 8. O-O {[%clk 0:02:47.6]}
8... O-O {[%clk 0:03:01.2]} 9. Be3 {[%clk 0:02:48.3]} 9... Be6 {[%clk
0:03:00.7]} 10. Qd2 {[%clk 0:02:48.3]} 10... Nbd7 {[%clk 0:02:56.6]} 11. a4
{[%clk 0:02:48.2]} 11... Qc7 {[%clk 0:02:56.5]} 12. Rfd1 {[%clk 0:02:43.3]}
12... Rac8 {[%clk 0:02:54.7]} 13. a5 {[%clk 0:02:42.2]} 13... Rfd8 {[%clk
0:02:36.1]} 14. Qe1 {[%clk 0:02:42.1]} 14... Qc6 {[%clk 0:02:30.5]} 15. Bf3
{[%clk 0:02:41.6]} 15... h6 {[%clk 0:02:20.5]} 16. Nc1 {[%clk 0:02:32.4]} 16...
Nc5 {[%clk 0:01:56]} 17. Nd3 {[%clk 0:01:37.1]} 17... Nxd3 {[%clk 0:01:47.1]}
18. Rxd3 {[%clk 0:01:17.2]} 18... Rd7 {[%clk 0:01:13.2]} 19. Rd2 {[%clk
0:00:56.1]} 19... Bd8 {[%clk 0:01:07.8]} 20. h3 {[%clk 0:00:39.1]} 20... Bc7
{[%clk 0:01:05]} 21. Nd5 {[%clk 0:00:33.4]} 21... Bxd5 {[%clk 0:00:39.9]} 22.
exd5 {[%clk 0:00:34.3]} 22... Qb5 {[%clk 0:00:32.9]} 23. Rdd1 {[%clk 0:00:17.4]}
23... Rdd8 {[%clk 0:00:29.3]} 24. b3 {[%clk 0:00:11.5]} 24... Qd7 {[%clk
0:00:25.5]} 25. c4 {[%clk 0:00:09.6]} 25... Re8 {[%clk 0:00:22.3]} 26. Be2
{[%clk 0:00:08.7]} 26... Rcd8 {[%clk 0:00:15.5]} 27. Qd2 {[%clk 0:00:08.7]}
27... Qf5 {[%clk 0:00:15]} 28. Rac1 {[%clk 0:00:06.6]} 28... Qg6 {[%clk
0:00:14.7]} 29. Qc2 {[%clk 0:00:06.4]} 29... e4 {[%clk 0:00:14]} 30. Bd4 {[%clk
0:00:06.1]} 30... Bxa5 {[%clk 0:00:11.6]} 31. Ra1 {[%clk 0:00:05.2]} 31... Bc7
{[%clk 0:00:11.2]} 32. Bxf6 {[%clk 0:00:05.2]} 32... Qxf6 {[%clk 0:00:11.2]} 33.
Rab1 {[%clk 0:00:04.5]} 33... Bb6 {[%clk 0:00:11.2]} 34. Bf1 {[%clk 0:00:04.2]}
34... a5 {[%clk 0:00:11.5]} 35. Re1 {[%clk 0:00:04.1]} 35... Bc5 {[%clk
0:00:11.7]} 36. Qe2 {[%clk 0:00:03.9]} 36... b6 {[%clk 0:00:11.6]} 37. Qd2
{[%clk 0:00:02.8]} 37... Re5 {[%clk 0:00:11.5]} 38. Qc2 {[%clk 0:00:02.8]} 38...
Rde8 {[%clk 0:00:10.6]} 39. Re2 {[%clk 0:00:03.3]} 39... Rf5 {[%clk 0:00:10.5]}
40. Rd1 {[%clk 0:00:03.1]} 40... Rfe5 {[%clk 0:00:10.5]} 41. Rdd2 {[%clk
0:00:03.5]} 41... Qg5 {[%clk 0:00:10.5]} 42. Rxe4 {[%clk 0:00:03.3]} 42... Rxe4
{[%clk 0:00:10.4]} 43. g3 {[%clk 0:00:03.8]} 43... Re1 {[%clk 0:00:10.2]} 44.
Kg2 {[%clk 0:00:03.2]} 44... Qf6 {[%clk 0:00:07.2]} 45. h4 {[%clk 0:00:03.6]}
45... Qe5 {[%clk 0:00:07.1]} 46. Rd3 {[%clk 0:00:02.8]} 46... Qe4+ {[%clk
0:00:07.3]} 47. Kg1 {[%clk 0:00:01.5]} 47... Qf5 {[%clk 0:00:07.2]} 48. Rd2
{[%clk 0:00:01.6]} 48... Qxc2 {[%clk 0:00:06.5]} 49. Rxc2 {[%clk 0:00:02.5]}
49... Rb1 {[%clk 0:00:06.9]} 50. Rd2 {[%clk 0:00:02]} 50... Ree1 {[%clk
0:00:07.4]} 51. Kg2 {[%clk 0:00:02]} 51... Rxf1 {[%clk 0:00:08]} 52. Re2 {[%clk
0:00:02.4]} 52... Rg1+ {[%clk 0:00:08.5]} 53. Kf3 {[%clk 0:00:02.4]} 53... Rxb3+
{[%clk 0:00:08.8]} 54. Kg4 {[%clk 0:00:01.3]} 54... Rc1 {[%clk 0:00:08.8]} 55.
Re8+ {[%clk 0:00:01.3]} 55... Kh7 {[%clk 0:00:09.1]} 56. f4 {[%clk 0:00:02.2]}
56... Rxc4 {[%clk 0:00:09.3]} 57. Kf5 {[%clk 0:00:02.2]} 57... Rxg3 {[%clk
0:00:08.6]} 58. h5 {[%clk 0:00:02.2]} 58... Bd4 {[%clk 0:00:08.6]} 59. Rg8
{[%clk 0:00:01.7]} 59... g6+ {[%clk 0:00:08.5]} 60. hxg6+ {[%clk 0:00:01.1]}
60... fxg6+ {[%clk 0:00:09.1]} 61. Ke6 {[%clk 0:00:01.6]} 61... Re3+ {[%clk
0:00:08.6]} 62. Kd7 {[%clk 0:00:01.7]} 62... Bc5 {[%clk 0:00:09.1]} 0-1

[Event "*** SCC Grand Prix: Titled Tuesday Blitz"]
[Site "Chess.com"]
[Date "2020.09.08"]
[Round "8"]
[White "NMZanette"]
[Black "northridgehawk"]
[Result "1-0"]
[WhiteElo "2194"]
[BlackElo "2283"]
[TimeControl "180+1"]
[EndTime "11:37:41 PDT"]
[Termination "NMZanette won by resignation"]

1. e4 {[%clk 0:03:00.9]} 1... e5 {[%clk 0:02:55.8]} 2. Nf3 {[%clk 0:03:00.3]}
2... Nc6 {[%clk 0:02:55.6]} 3. Bb5 {[%clk 0:02:59.6]} 3... Nf6 {[%clk
0:02:54.6]} 4. d3 {[%clk 0:02:59]} 4... a6 {[%clk 0:02:53.4]} 5. Bxc6 {[%clk
0:02:55.3]} 5... dxc6 {[%clk 0:02:52.4]} 6. Nxe5 {[%clk 0:02:55.9]} 6... Bc5
{[%clk 0:02:52.2]} 7. O-O {[%clk 0:02:49.8]} 7... O-O {[%clk 0:02:50.3]} 8. h3
{[%clk 0:02:44.7]} 8... Re8 {[%clk 0:02:47.4]} 9. Nf3 {[%clk 0:02:39]} 9... Be6
{[%clk 0:02:43.4]} 10. Nc3 {[%clk 0:02:34.4]} 10... Qd7 {[%clk 0:02:40.6]} 11.
Ng5 {[%clk 0:02:29.7]} 11... Rad8 {[%clk 0:02:29.6]} 12. Nxe6 {[%clk 0:02:28.8]}
12... Qxe6 {[%clk 0:02:30.5]} 13. Qf3 {[%clk 0:02:23.4]} 13... Bd4 {[%clk
0:02:27.2]} 14. Be3 {[%clk 0:02:10.3]} 14... Be5 {[%clk 0:02:24.9]} 15. Rfd1
{[%clk 0:01:52.9]} 15... Nd7 {[%clk 0:02:05.9]} 16. d4 {[%clk 0:01:50.7]} 16...
Bf6 {[%clk 0:02:05.8]} 17. e5 {[%clk 0:01:50.4]} 17... Be7 {[%clk 0:02:04.7]}
18. Qg3 {[%clk 0:01:43.6]} 18... Nb6 {[%clk 0:02:01.6]} 19. b3 {[%clk
0:01:38.5]} 19... Bf8 {[%clk 0:01:55.4]} 20. f4 {[%clk 0:01:32.4]} 20... Qf5
{[%clk 0:01:52]} 21. Qf2 {[%clk 0:01:27.6]} 21... h5 {[%clk 0:01:48.3]} 22. Ne2
{[%clk 0:01:20.5]} 22... Nd5 {[%clk 0:01:46.4]} 23. Ng3 {[%clk 0:01:18.1]} 23...
Qh7 {[%clk 0:01:40.7]} 24. c4 {[%clk 0:01:11.2]} 24... Nxe3 {[%clk 0:01:24.1]}
25. Qxe3 {[%clk 0:01:10]} 25... h4 {[%clk 0:01:25]} 26. Ne4 {[%clk 0:01:04.6]}
26... b6 {[%clk 0:01:24.7]} 27. Ng5 {[%clk 0:01:03.4]} 27... Qf5 {[%clk
0:01:22.8]} 28. Qe4 {[%clk 0:00:57.7]} 28... Qxe4 {[%clk 0:01:13.5]} 29. Nxe4
{[%clk 0:00:57.7]} 29... f6 {[%clk 0:01:04.8]} 30. Kf1 {[%clk 0:00:49.8]} 30...
Kf7 {[%clk 0:00:58.5]} 31. Ke2 {[%clk 0:00:42.3]} 31... Ke6 {[%clk 0:00:56.1]}
32. Kf3 {[%clk 0:00:40.4]} 32... f5 {[%clk 0:00:54.1]} 33. Ng5+ {[%clk
0:00:39.6]} 33... Kd7 {[%clk 0:00:53.4]} 34. d5 {[%clk 0:00:38.7]} 34... cxd5
{[%clk 0:00:50.9]} 35. cxd5 {[%clk 0:00:38.7]} 35... Kc8 {[%clk 0:00:51.2]} 36.
Rac1 {[%clk 0:00:32.7]} 36... Rd7 {[%clk 0:00:48.2]} 37. d6 {[%clk 0:00:23.6]}
37... Kb7 {[%clk 0:00:41]} 38. dxc7 {[%clk 0:00:21.2]} 38... Rxc7 {[%clk
0:00:41.9]} 39. Rxc7+ {[%clk 0:00:19.9]} 39... Kxc7 {[%clk 0:00:42.8]} 40. Rc1+
{[%clk 0:00:19.5]} 40... Kd7 {[%clk 0:00:41.5]} 41. e6+ {[%clk 0:00:18.4]} 41...
Kd6 {[%clk 0:00:39.9]} 42. Rd1+ {[%clk 0:00:18]} 42... Kc6 {[%clk 0:00:39]} 43.
Rd7 {[%clk 0:00:18.4]} 43... a5 {[%clk 0:00:37]} 44. Rf7 {[%clk 0:00:17.1]}
44... g6 {[%clk 0:00:30.5]} 45. Rf6 {[%clk 0:00:16.8]} 45... Be7 {[%clk
0:00:28.8]} 46. Rxg6 {[%clk 0:00:17.3]} 46... Kd6 {[%clk 0:00:29.7]} 47. Nf7+
{[%clk 0:00:15.3]} 47... Kc5 {[%clk 0:00:26.8]} 48. Ne5 {[%clk 0:00:15.9]} 48...
Rd8 {[%clk 0:00:24.4]} 49. Nd7+ {[%clk 0:00:15.9]} 49... Kd6 {[%clk 0:00:23.6]}
50. g4 {[%clk 0:00:15.3]} 50... fxg4+ {[%clk 0:00:19.8]} 51. Kxg4 {[%clk
0:00:14.4]} 51... Rb8 {[%clk 0:00:19.8]} 52. f5 {[%clk 0:00:14.4]} 52... Rc8
{[%clk 0:00:19]} 53. f6 {[%clk 0:00:13.3]} 53... Kxe6 {[%clk 0:00:18.7]} 54.
Nxb6 {[%clk 0:00:11.3]} 54... Kf7 {[%clk 0:00:16.3]} 55. Rg7+ {[%clk 0:00:10.8]}
55... Kxf6 {[%clk 0:00:16.5]} 56. Rh7 {[%clk 0:00:11]} 56... Rg8+ {[%clk
0:00:15.9]} 57. Kf3 {[%clk 0:00:09.9]} 57... Bb4 {[%clk 0:00:16.8]} 58. Nd5+
{[%clk 0:00:09.5]} 58... Ke5 {[%clk 0:00:17.7]} 59. Nxb4 {[%clk 0:00:09.8]}
59... axb4 {[%clk 0:00:18.2]} 60. Rxh4 {[%clk 0:00:10.2]} 60... Rb8 {[%clk
0:00:17.8]} 61. Re4+ {[%clk 0:00:10.3]} 61... Kd5 {[%clk 0:00:17.8]} 62. h4
{[%clk 0:00:10.6]} 62... Kc5 {[%clk 0:00:18.7]} 63. h5 {[%clk 0:00:09.9]} 63...
Ra8 {[%clk 0:00:19.6]} 64. Re2 {[%clk 0:00:09.6]} 64... Rf8+ {[%clk 0:00:18.2]}
65. Kg4 {[%clk 0:00:09.8]} 65... Kd4 {[%clk 0:00:18.4]} 66. h6 {[%clk 0:00:10]}
66... Kd3 {[%clk 0:00:18.8]} 67. Rh2 {[%clk 0:00:09.6]} 67... Rh8 {[%clk
0:00:16.8]} 68. h7 {[%clk 0:00:09.7]} 68... Rg8+ {[%clk 0:00:17.7]} 69. hxg8=Q
{[%clk 0:00:09.5]} 1-0

[Event "*** SCC Grand Prix: Titled Tuesday Blitz"]
[Site "Chess.com"]
[Date "2020.09.08"]
[Round "8"]
[White "PavelChernomordik"]
[Black "blitis"]
[Result "1-0"]
[WhiteElo "2358"]
[BlackElo "2485"]
[TimeControl "180+1"]
[EndTime "11:37:42 PDT"]
[Termination "PavelChernomordik won on time"]

1. e4 {[%clk 0:03:00.9]} 1... c5 {[%clk 0:02:59.6]} 2. Nc3 {[%clk 0:02:57.8]}
2... g6 {[%clk 0:02:57.7]} 3. f4 {[%clk 0:02:56.1]} 3... Bg7 {[%clk 0:02:57.9]}
4. Nf3 {[%clk 0:02:56.1]} 4... Nc6 {[%clk 0:02:56]} 5. Bb5 {[%clk 0:02:55]} 5...
Nd4 {[%clk 0:02:53]} 6. Bc4 {[%clk 0:02:48.2]} 6... e6 {[%clk 0:02:47.2]} 7. e5
{[%clk 0:02:44.5]} 7... d6 {[%clk 0:02:36.8]} 8. exd6 {[%clk 0:02:31.7]} 8...
Qxd6 {[%clk 0:02:35.3]} 9. d3 {[%clk 0:02:29.4]} 9... Ne7 {[%clk 0:02:33.1]} 10.
Ne4 {[%clk 0:02:22.3]} 10... Qc7 {[%clk 0:02:30.9]} 11. c3 {[%clk 0:02:18.2]}
11... Nxf3+ {[%clk 0:02:26.7]} 12. Qxf3 {[%clk 0:02:17.3]} 12... O-O {[%clk
0:02:23]} 13. O-O {[%clk 0:02:15.8]} 13... a6 {[%clk 0:02:13]} 14. a4 {[%clk
0:02:14.7]} 14... b6 {[%clk 0:02:09.3]} 15. Be3 {[%clk 0:02:02.7]} 15... Bb7
{[%clk 0:02:08.4]} 16. Qe2 {[%clk 0:02:00.7]} 16... Nd5 {[%clk 0:02:04.2]} 17.
Bd2 {[%clk 0:01:55.8]} 17... Kh8 {[%clk 0:01:51]} 18. Kh1 {[%clk 0:01:53.3]}
18... Rfe8 {[%clk 0:01:47.7]} 19. Qf2 {[%clk 0:01:51]} 19... f5 {[%clk
0:01:22.7]} 20. Ng5 {[%clk 0:01:49.7]} 20... e5 {[%clk 0:01:22.1]} 21. fxe5
{[%clk 0:01:47.7]} 21... Bxe5 {[%clk 0:01:16.3]} 22. Qh4 {[%clk 0:01:46.6]}
22... Qg7 {[%clk 0:01:14.7]} 23. Rae1 {[%clk 0:01:38.4]} 23... Bc6 {[%clk
0:00:48.1]} 24. Bb3 {[%clk 0:01:35.7]} 24... Re7 {[%clk 0:00:40.9]} 25. Nf3
{[%clk 0:01:29]} 25... Bf6 {[%clk 0:00:39.6]} 26. Bg5 {[%clk 0:01:25.8]} 26...
Bxg5 {[%clk 0:00:37.3]} 27. Qxg5 {[%clk 0:01:21.8]} 27... Rae8 {[%clk
0:00:36.2]} 28. Qd2 {[%clk 0:01:14.6]} 28... Qf6 {[%clk 0:00:23]} 29. d4 {[%clk
0:01:10.5]} 29... Ne3 {[%clk 0:00:20.3]} 30. Rxe3 {[%clk 0:00:56.9]} 30... Rxe3
{[%clk 0:00:19.4]} 31. Ne5 {[%clk 0:00:57.2]} 31... R8xe5 {[%clk 0:00:18]} 32.
dxe5 {[%clk 0:00:55.7]} 32... Qxe5 {[%clk 0:00:17.4]} 33. Bc4 {[%clk 0:00:52.2]}
33... b5 {[%clk 0:00:15.9]} 34. axb5 {[%clk 0:00:49.9]} 34... axb5 {[%clk
0:00:16.8]} 35. Bd3 {[%clk 0:00:48.9]} 35... c4 {[%clk 0:00:16.4]} 36. Bxf5
{[%clk 0:00:37.6]} 36... gxf5 {[%clk 0:00:14.1]} 37. Qd8+ {[%clk 0:00:35]} 37...
Kg7 {[%clk 0:00:14.2]} 38. Qg5+ {[%clk 0:00:33.1]} 38... Kf7 {[%clk 0:00:12.6]}
39. Rxf5+ {[%clk 0:00:30.6]} 39... Ke6 {[%clk 0:00:08.5]} 40. Rxe5+ {[%clk
0:00:29.3]} 40... Rxe5 {[%clk 0:00:09.4]} 41. Qg4+ {[%clk 0:00:29.1]} 41... Kd6
{[%clk 0:00:08.9]} 42. h4 {[%clk 0:00:28.3]} 42... Re4 {[%clk 0:00:07.5]} 43.
Qh5 {[%clk 0:00:24.9]} 43... Re5 {[%clk 0:00:05.3]} 44. Qxh7 {[%clk 0:00:23]}
44... Re1+ {[%clk 0:00:05.3]} 45. Kh2 {[%clk 0:00:21.1]} 45... Re2 {[%clk
0:00:06.2]} 46. Qg6+ {[%clk 0:00:19.8]} 46... Kc5 {[%clk 0:00:05.6]} 47. Qg5+
{[%clk 0:00:18.9]} 47... Kb6 {[%clk 0:00:04.1]} 48. h5 {[%clk 0:00:18.7]} 48...
Rxb2 {[%clk 0:00:03.2]} 49. h6 {[%clk 0:00:18]} 49... b4 {[%clk 0:00:03.2]} 50.
cxb4 {[%clk 0:00:15.2]} 50... c3 {[%clk 0:00:02.9]} 51. Qc5+ {[%clk 0:00:13.6]}
51... Kb7 {[%clk 0:00:02.5]} 52. Qxc3 {[%clk 0:00:13]} 52... Rxg2+ {[%clk
0:00:02.6]} 53. Kh3 {[%clk 0:00:12.9]} 53... Rg6 {[%clk 0:00:03.2]} 54. Qe3
{[%clk 0:00:08.6]} 54... Bd7+ {[%clk 0:00:03]} 55. Kh4 {[%clk 0:00:07.1]} 55...
Rg4+ {[%clk 0:00:02.6]} 56. Kh5 {[%clk 0:00:06.3]} 56... Rxb4 {[%clk 0:00:02.3]}
57. h7 {[%clk 0:00:04.2]} 1-0

[Event "*** SCC Grand Prix: Titled Tuesday Blitz"]
[Site "Chess.com"]
[Date "2020.09.08"]
[Round "8"]
[White "Gabix_94"]
[Black "Hikaru"]
[Result "0-1"]
[WhiteElo "2841"]
[BlackElo "3196"]
[TimeControl "180+1"]
[EndTime "11:37:45 PDT"]
[Termination "Hikaru won by resignation"]

1. Nf3 {[%clk 0:03:00.9]} 1... d5 {[%clk 0:02:56.4]} 2. g3 {[%clk 0:02:59.7]}
2... g6 {[%clk 0:02:56.3]} 3. Bg2 {[%clk 0:02:59]} 3... Bg7 {[%clk 0:02:56.9]}
4. O-O {[%clk 0:02:58.7]} 4... e5 {[%clk 0:02:57]} 5. d3 {[%clk 0:02:57.2]} 5...
Ne7 {[%clk 0:02:51.8]} 6. c4 {[%clk 0:02:56.9]} 6... O-O {[%clk 0:02:51.6]} 7.
cxd5 {[%clk 0:02:56.6]} 7... Nxd5 {[%clk 0:02:52.5]} 8. Nc3 {[%clk 0:02:56.4]}
8... Ne7 {[%clk 0:02:43.3]} 9. Bg5 {[%clk 0:02:46.8]} 9... h6 {[%clk 0:02:40.4]}
10. Bd2 {[%clk 0:02:46]} 10... Nbc6 {[%clk 0:02:38.7]} 11. a3 {[%clk 0:02:44]}
11... a5 {[%clk 0:02:38.9]} 12. Rb1 {[%clk 0:02:42.4]} 12... Be6 {[%clk
0:02:35.9]} 13. Qc1 {[%clk 0:02:40.8]} 13... Kh7 {[%clk 0:02:34.5]} 14. b4
{[%clk 0:02:40.7]} 14... axb4 {[%clk 0:02:34.4]} 15. axb4 {[%clk 0:02:41.6]}
15... Nd4 {[%clk 0:02:32.6]} 16. Nxd4 {[%clk 0:02:09.5]} 16... exd4 {[%clk
0:02:33.5]} 17. Ne4 {[%clk 0:01:59.8]} 17... Bd5 {[%clk 0:02:33.6]} 18. Bf4
{[%clk 0:01:52.1]} 18... c6 {[%clk 0:02:33.7]} 19. b5 {[%clk 0:01:49.2]} 19...
g5 {[%clk 0:01:39.5]} 20. Bd6 {[%clk 0:01:44.8]} 20... f5 {[%clk 0:01:29.9]} 21.
bxc6 {[%clk 0:01:38.3]} 21... Bxc6 {[%clk 0:01:24.3]} 22. Bxe7 {[%clk
0:01:28.1]} 22... Qxe7 {[%clk 0:01:24.3]} 23. Nd2 {[%clk 0:01:21.9]} 23... Bxg2
{[%clk 0:01:03.8]} 24. Kxg2 {[%clk 0:01:22.8]} 24... Rfc8 {[%clk 0:01:03.9]} 25.
Qd1 {[%clk 0:01:21.1]} 25... Ra2 {[%clk 0:01:02.7]} 26. Rb5 {[%clk 0:01:17.3]}
26... Rcc2 {[%clk 0:00:59.7]} 27. Nc4 {[%clk 0:01:12.4]} 27... Rxe2 {[%clk
0:00:45.7]} 28. Rxf5 {[%clk 0:01:09.8]} 28... Qd7 {[%clk 0:00:45.8]} 29. g4
{[%clk 0:00:55.8]} 29... b5 {[%clk 0:00:45.8]} 30. Nb6 {[%clk 0:00:51.1]} 30...
Qc6+ {[%clk 0:00:27.7]} 31. Nd5 {[%clk 0:00:50.7]} 31... b4 {[%clk 0:00:25.7]}
32. Kg1 {[%clk 0:00:50.1]} 32... Qd6 {[%clk 0:00:19.8]} 33. Qb3 {[%clk
0:00:46.2]} 33... Rab2 {[%clk 0:00:20.1]} 34. Qc4 {[%clk 0:00:46.2]} 34... Rec2
{[%clk 0:00:17.8]} 35. Qb5 {[%clk 0:00:43.6]} 35... Qc6 {[%clk 0:00:16.9]} 36.
Ne7 {[%clk 0:00:40.1]} 36... Qxb5 {[%clk 0:00:16.8]} 37. Rxb5 {[%clk 0:00:41]}
37... Bf8 {[%clk 0:00:15.8]} 38. Nf5 {[%clk 0:00:40.3]} 38... Bc5 {[%clk
0:00:15]} 39. Rb7+ {[%clk 0:00:40]} 39... Kg6 {[%clk 0:00:15.1]} 40. Re1 {[%clk
0:00:39.9]} 40... Kf6 {[%clk 0:00:15.7]} 41. Rh7 {[%clk 0:00:37.6]} 41... Rxf2
{[%clk 0:00:10]} 42. Rxh6+ {[%clk 0:00:37.9]} 42... Kf7 {[%clk 0:00:10.7]} 43.
Rh7+ {[%clk 0:00:37.8]} 43... Kg6 {[%clk 0:00:11.4]} 44. Rh6+ {[%clk 0:00:29.9]}
44... Kf7 {[%clk 0:00:11.7]} 45. Rh7+ {[%clk 0:00:25.1]} 45... Kg8 {[%clk
0:00:12.1]} 46. Rg7+ {[%clk 0:00:20.4]} 46... Kf8 {[%clk 0:00:12.3]} 47. Rh7
{[%clk 0:00:19.6]} 47... b3 {[%clk 0:00:12.8]} 48. Rh8+ {[%clk 0:00:18.7]} 48...
Kf7 {[%clk 0:00:12.8]} 49. Rh7+ {[%clk 0:00:19.2]} 49... Kg8 {[%clk 0:00:13.5]}
50. Rg7+ {[%clk 0:00:18.8]} 50... Kf8 {[%clk 0:00:14.1]} 51. Rh7 {[%clk
0:00:19.3]} 51... Rg2+ {[%clk 0:00:14.3]} 52. Kh1 {[%clk 0:00:19.4]} 52... Rgd2
{[%clk 0:00:14.9]} 53. Rf1 {[%clk 0:00:14.7]} 53... Rf2 {[%clk 0:00:13.6]} 54.
Re1 {[%clk 0:00:13.4]} 54... Rbe2 {[%clk 0:00:12.7]} 55. Rb1 {[%clk 0:00:08.5]}
55... b2 {[%clk 0:00:12.7]} 56. Rh8+ {[%clk 0:00:05.8]} 56... Kf7 {[%clk
0:00:12.7]} 57. Rh7+ {[%clk 0:00:06.1]} 57... Ke8 {[%clk 0:00:11.6]} 58. Kg1
{[%clk 0:00:05.5]} 58... Rc2 {[%clk 0:00:12]} 59. Ng7+ {[%clk 0:00:03.2]} 59...
Kd7 {[%clk 0:00:09.9]} 60. Nf5+ {[%clk 0:00:03.2]} 60... Kc6 {[%clk 0:00:09.2]}
61. Rh6+ {[%clk 0:00:02.9]} 61... Kb5 {[%clk 0:00:09.6]} 62. Nd6+ {[%clk
0:00:02.7]} 62... Bxd6 {[%clk 0:00:09.8]} 63. Rxd6 {[%clk 0:00:03.6]} 63... Rfd2
{[%clk 0:00:10.3]} 64. Rd5+ {[%clk 0:00:03.5]} 64... Kb4 {[%clk 0:00:10.2]} 65.
Rxd4+ {[%clk 0:00:03.8]} 65... Kb3 {[%clk 0:00:10.9]} 66. Rc4 {[%clk 0:00:04]}
66... Rxc4 {[%clk 0:00:09.8]} 67. dxc4 {[%clk 0:00:04.9]} 67... Kxc4 {[%clk
0:00:10.2]} 68. h4 {[%clk 0:00:04.2]} 68... gxh4 {[%clk 0:00:11]} 69. g5 {[%clk
0:00:04.6]} 69... Kb3 {[%clk 0:00:10.9]} 70. g6 {[%clk 0:00:05]} 70... Rd6
{[%clk 0:00:11.4]} 71. g7 {[%clk 0:00:05.1]} 71... Rg6+ {[%clk 0:00:11.6]} 0-1